[Event "Titled Tuesday Blitz June 6 Early 2023"]
[White "Garcia Jimenez, Francisco Javier"]
[Black "Perez, Maximiliano"]
[WhiteFideId "2231590"]
[BlackFideId "117234"]
[WhiteElo "2246"]
[BlackElo "2334"]
[Result "0-1"]
[Round "6"]
[TimeControl "180+2"]
[Date "2023.06.06"]
[WhiteClock "0:00:06"]
[BlackClock "0:00:18"]
[Board "90"]

1. e4 {[%clk 0:03:00]}  c5 {[%clk 0:02:59]} 2. Nc3 {[%clk 0:03:00]}  Nc6 {[%clk 0:02:59]} 3. g3 {[%clk 0:03:01]}  g6 {[%clk 0:02:59]} 4. Bg2 {[%clk 0:03:01]}  Bg7 {[%clk 0:03:00]} 5. d3 {[%clk 0:03:01]}  d6 {[%clk 0:03:01]} 6. Be3 {[%clk 0:03:02]}  e5 {[%clk 0:03:01]} 7. Qd2 {[%clk 0:03:02]}  h5 {[%clk 0:03:02]} 8. h3 {[%clk 0:03:01]}  Nge7 {[%clk 0:02:59]} 9. Bg5 {[%clk 0:03:00]}  f6 {[%clk 0:02:59]} 10. Be3 {[%clk 0:03:00]}  Nd4 {[%clk 0:03:00]} 11. Nge2 {[%clk 0:02:59]}  Be6 {[%clk 0:03:00]} 12. f4 {[%clk 0:02:59]}  Qd7 {[%clk 0:02:59]} 13. Nd5 {[%clk 0:02:57]}  O-O-O {[%clk 0:02:53]} 14. Nec3 {[%clk 0:02:51]}  Bxd5 {[%clk 0:02:51]} 15. Nxd5 {[%clk 0:02:49]}  Nxd5 {[%clk 0:02:50]} 16. exd5 {[%clk 0:02:50]}  f5 {[%clk 0:02:51]} 17. c3 {[%clk 0:02:46]}  Rhe8 {[%clk 0:02:28]} 18. fxe5 {[%clk 0:02:17]}  Bxe5 {[%clk 0:02:19]} 19. O-O {[%clk 0:02:09]}  Nb5 {[%clk 0:02:18]} 20. Bg5 {[%clk 0:01:53]}  Bxg3 {[%clk 0:02:18]} 21. Bxd8 {[%clk 0:01:53]}  Qxd8 {[%clk 0:02:15]} 22. a4 {[%clk 0:01:49]}  Nc7 {[%clk 0:02:15]} 23. d4 {[%clk 0:01:43]}  c4 {[%clk 0:02:13]} 24. Rf3 {[%clk 0:01:34]}  f4 {[%clk 0:02:02]} 25. Rxf4 {[%clk 0:01:32]}  Qg5 {[%clk 0:01:51]} 26. Raf1 {[%clk 0:01:31]}  Bxf4 {[%clk 0:01:49]} 27. Qxf4 {[%clk 0:01:30]}  Qxf4 {[%clk 0:01:35]} 28. Rxf4 {[%clk 0:01:30]}  Re2 {[%clk 0:01:36]} 29. Rf2 {[%clk 0:01:30]}  Re1+ {[%clk 0:01:26]} 30. Rf1 {[%clk 0:01:30]}  Rxf1+ {[%clk 0:01:11]} 31. Kxf1 {[%clk 0:01:25]}  Kd7 {[%clk 0:01:01]} 32. h4 {[%clk 0:01:23]}  Ke7 {[%clk 0:01:01]} 33. Kf2 {[%clk 0:01:23]}  Kf6 {[%clk 0:01:02]} 34. Ke3 {[%clk 0:01:23]}  g5 {[%clk 0:01:01]} 35. Ke4 {[%clk 0:01:01]}  gxh4 {[%clk 0:00:51]} 36. Kf4 {[%clk 0:00:56]}  b6 {[%clk 0:00:47]} 37. Bf3 {[%clk 0:00:50]}  Kg6 {[%clk 0:00:47]} 38. Be4+ {[%clk 0:00:49]}  Kf6 {[%clk 0:00:45]} 39. Bf3 {[%clk 0:00:49]}  a6 {[%clk 0:00:45]} 40. Bxh5 {[%clk 0:00:29]}  Nxd5+ {[%clk 0:00:45]} 41. Kg4 {[%clk 0:00:29]}  b5 {[%clk 0:00:44]} 42. axb5 {[%clk 0:00:28]}  axb5 {[%clk 0:00:45]} 43. Kxh4 {[%clk 0:00:25]}  b4 {[%clk 0:00:45]} 44. Be2 {[%clk 0:00:20]}  bxc3 {[%clk 0:00:44]} 45. bxc3 {[%clk 0:00:21]}  Nb6 {[%clk 0:00:24]} 46. Kg4 {[%clk 0:00:18]}  d5 {[%clk 0:00:24]} 47. Bd1 {[%clk 0:00:17]}  Nc8 {[%clk 0:00:22]} 48. Kf4 {[%clk 0:00:17]}  Nd6 {[%clk 0:00:22]} 49. Ke3 {[%clk 0:00:17]}  Ne4 {[%clk 0:00:21]} 50. Bf3 {[%clk 0:00:13]}  Nxc3 {[%clk 0:00:21]} 51. Kd2 {[%clk 0:00:13]}  Ne4+ {[%clk 0:00:20]} 52. Bxe4 {[%clk 0:00:07]}  dxe4 {[%clk 0:00:21]} 53. Ke3 {[%clk 0:00:07]}  c3 {[%clk 0:00:18]} 54. d5 {[%clk 0:00:06]}  Ke5 {[%clk 0:00:18]} 0-1


[Site "https://www.chess.com"]

[Event "Titled Tuesday Blitz June 6 Early 2023"]
[White "Garcia Cuenca, Victor"]
[Black "Novikov, Evgenij"]
[WhiteFideId "2250829"]
[BlackFideId "4125380"]
[WhiteElo "2329"]
[BlackElo "2242"]
[Result "1/2-1/2"]
[Round "6"]
[TimeControl "180+2"]
[Date "2023.06.06"]
[WhiteClock "0:00:05"]
[BlackClock "0:00:03"]
[Board "91"]

1. Nf3 {[%clk 0:03:00]}  d6 {[%clk 0:02:59]} 2. b3 {[%clk 0:03:01]}  Nf6 {[%clk 0:02:58]} 3. Bb2 {[%clk 0:03:02]}  Nbd7 {[%clk 0:02:59]} 4. d4 {[%clk 0:03:01]}  g6 {[%clk 0:02:59]} 5. g3 {[%clk 0:03:01]}  Bg7 {[%clk 0:02:59]} 6. Bg2 {[%clk 0:03:02]}  O-O {[%clk 0:03:00]} 7. O-O {[%clk 0:03:02]}  c6 {[%clk 0:02:58]} 8. Nbd2 {[%clk 0:03:01]}  Qc7 {[%clk 0:02:58]} 9. h3 {[%clk 0:02:59]}  a5 {[%clk 0:02:57]} 10. a4 {[%clk 0:02:55]}  b6 {[%clk 0:02:56]} 11. e4 {[%clk 0:02:54]}  e5 {[%clk 0:02:55]} 12. Re1 {[%clk 0:02:44]}  Ba6 {[%clk 0:02:53]} 13. dxe5 {[%clk 0:02:36]}  dxe5 {[%clk 0:02:53]} 14. Bf1 {[%clk 0:02:37]}  Bxf1 {[%clk 0:02:51]} 15. Kxf1 {[%clk 0:02:37]}  Rfe8 {[%clk 0:02:38]} 16. Nc4 {[%clk 0:02:37]}  h6 {[%clk 0:02:20]} 17. Qd6 {[%clk 0:02:34]}  Qxd6 {[%clk 0:02:17]} 18. Nxd6 {[%clk 0:02:35]}  Re6 {[%clk 0:02:15]} 19. Rad1 {[%clk 0:02:33]}  Ra7 {[%clk 0:01:39]} 20. Nc4 {[%clk 0:02:23]}  Ne8 {[%clk 0:01:32]} 21. Rd3 {[%clk 0:02:12]}  b5 {[%clk 0:01:30]} 22. Na3 {[%clk 0:02:12]}  bxa4 {[%clk 0:01:26]} 23. bxa4 {[%clk 0:02:13]}  Nc5 {[%clk 0:01:26]} 24. Rd8 {[%clk 0:02:12]}  Nxa4 {[%clk 0:01:20]} 25. Ba1 {[%clk 0:02:07]}  Kh7 {[%clk 0:01:14]} 26. Nc4 {[%clk 0:02:05]}  Bf6 {[%clk 0:00:53]} 27. Rb8 {[%clk 0:01:48]}  Nc5 {[%clk 0:00:50]} 28. Ncxe5 {[%clk 0:01:43]}  Rae7 {[%clk 0:00:37]} 29. Ng4 {[%clk 0:01:25]}  Bxa1 {[%clk 0:00:36]} 30. Rxa1 {[%clk 0:01:25]}  Nxe4 {[%clk 0:00:34]} 31. Rxa5 {[%clk 0:01:21]}  h5 {[%clk 0:00:34]} 32. Ngh2 {[%clk 0:01:10]}  Kg7 {[%clk 0:00:30]} 33. Nd4 {[%clk 0:00:45]}  Rd6 {[%clk 0:00:28]} 34. Nhf3 {[%clk 0:00:45]}  c5 {[%clk 0:00:25]} 35. Nb3 {[%clk 0:00:39]}  Rd1+ {[%clk 0:00:24]} 36. Kg2 {[%clk 0:00:39]}  c4 {[%clk 0:00:21]} 37. Nbd4 {[%clk 0:00:37]}  c3 {[%clk 0:00:20]} 38. Raa8 {[%clk 0:00:35]}  N8f6 {[%clk 0:00:19]} 39. Rc8 {[%clk 0:00:28]}  Rd2 {[%clk 0:00:19]} 40. Nxd2 {[%clk 0:00:18]}  cxd2 {[%clk 0:00:20]} 41. Ra1 {[%clk 0:00:18]}  Nd5 {[%clk 0:00:20]} 42. Rd1 {[%clk 0:00:17]}  Rb7 {[%clk 0:00:06]} 43. Nf3 {[%clk 0:00:16]}  Ndc3 {[%clk 0:00:05]} 44. Rxc3 {[%clk 0:00:14]}  Nxc3 {[%clk 0:00:05]} 45. Rxd2 {[%clk 0:00:14]}  Rb2 {[%clk 0:00:06]} 46. Nd4 {[%clk 0:00:13]}  Ne4 {[%clk 0:00:05]} 47. Re2 {[%clk 0:00:13]}  f5 {[%clk 0:00:06]} 48. f3 {[%clk 0:00:11]}  Nc3 {[%clk 0:00:06]} 49. Re3 {[%clk 0:00:12]}  Nd5 {[%clk 0:00:06]} 50. Re5 {[%clk 0:00:11]}  Nb4 {[%clk 0:00:06]} 51. Rb5 {[%clk 0:00:10]}  Nd3 {[%clk 0:00:02]} 52. Rxb2 {[%clk 0:00:08]}  Nxb2 {[%clk 0:00:03]} 53. f4 {[%clk 0:00:08]}  Kf6 {[%clk 0:00:03]} 54. Kf2 {[%clk 0:00:08]}  g5 {[%clk 0:00:04]} 55. fxg5+ {[%clk 0:00:07]}  Kxg5 {[%clk 0:00:04]} 56. Ne6+ {[%clk 0:00:07]}  Kf6 {[%clk 0:00:04]} 57. Nf4 {[%clk 0:00:08]}  Kg5 {[%clk 0:00:04]} 58. Kf3 {[%clk 0:00:06]}  h4 {[%clk 0:00:04]} 59. Ne6+ {[%clk 0:00:05]}  Kf6 {[%clk 0:00:04]} 60. Nd4 {[%clk 0:00:05]}  hxg3 {[%clk 0:00:04]} 61. Kxg3 {[%clk 0:00:06]}  Nc4 {[%clk 0:00:04]} 62. h4 {[%clk 0:00:05]}  Ke5 {[%clk 0:00:05]} 63. Nxf5 {[%clk 0:00:02]}  Kxf5 {[%clk 0:00:05]} 64. h5 {[%clk 0:00:03]}  Ne3 {[%clk 0:00:03]} 65. h6 {[%clk 0:00:04]}  Kg6 {[%clk 0:00:03]} 66. Kf3 {[%clk 0:00:05]}  Nxc2 {[%clk 0:00:03]} 67. Ke4 {[%clk 0:00:05]}  Kxh6 {[%clk 0:00:03]} 1/2-1/2


[Site "https://www.chess.com"]

[Event "Titled Tuesday Blitz June 6 Early 2023"]
[White "Principe, Alexander"]
[Black "Gontcharov, Vladislav"]
[WhiteFideId "3804542"]
[BlackFideId "4123492"]
[WhiteElo "2203"]
[BlackElo "2420"]
[Result "0-1"]
[Round "6"]
[TimeControl "180+2"]
[Date "2023.06.06"]
[WhiteClock "0:00:11"]
[BlackClock "0:00:06"]
[Board "92"]

1. e4 {[%clk 0:03:00]}  e6 {[%clk 0:02:56]} 2. d4 {[%clk 0:02:59]}  d5 {[%clk 0:02:56]} 3. Nc3 {[%clk 0:02:59]}  Bb4 {[%clk 0:02:55]} 4. e5 {[%clk 0:03:00]}  c5 {[%clk 0:02:54]} 5. Bd2 {[%clk 0:03:00]}  cxd4 {[%clk 0:02:53]} 6. Nb5 {[%clk 0:03:00]}  Bf8 {[%clk 0:02:51]} 7. f4 {[%clk 0:02:59]}  Nc6 {[%clk 0:02:50]} 8. Nf3 {[%clk 0:02:59]}  Qb6 {[%clk 0:02:50]} 9. a4 {[%clk 0:02:43]}  a5 {[%clk 0:02:30]} 10. Bd3 {[%clk 0:02:34]}  f5 {[%clk 0:02:13]} 11. exf6 {[%clk 0:02:16]}  Nxf6 {[%clk 0:02:12]} 12. Qe2 {[%clk 0:02:15]}  Be7 {[%clk 0:01:48]} 13. O-O-O {[%clk 0:02:06]}  O-O {[%clk 0:01:45]} 14. Kb1 {[%clk 0:01:35]}  Bd7 {[%clk 0:01:38]} 15. Rhg1 {[%clk 0:01:26]}  Bb4 {[%clk 0:01:28]} 16. Bc1 {[%clk 0:01:21]}  Rae8 {[%clk 0:01:25]} 17. g4 {[%clk 0:01:19]}  Bc5 {[%clk 0:01:23]} 18. g5 {[%clk 0:00:58]}  Ne4 {[%clk 0:01:23]} 19. Bxe4 {[%clk 0:00:53]}  dxe4 {[%clk 0:01:23]} 20. Qxe4 {[%clk 0:00:54]}  Nb4 {[%clk 0:01:12]} 21. Ne5 {[%clk 0:00:29]}  Bxb5 {[%clk 0:01:05]} 22. axb5 {[%clk 0:00:28]}  Qxb5 {[%clk 0:01:06]} 23. Rg3 {[%clk 0:00:27]}  Rf5 {[%clk 0:01:02]} 24. g6 {[%clk 0:00:21]}  h6 {[%clk 0:00:57]} 25. Nf7 {[%clk 0:00:21]}  Qc4 {[%clk 0:00:51]} 26. b3 {[%clk 0:00:18]}  Qd5 {[%clk 0:00:51]} 27. Qe2 {[%clk 0:00:17]}  a4 {[%clk 0:00:47]} 28. Qb5 {[%clk 0:00:17]}  Ra8 {[%clk 0:00:40]} 29. Bb2 {[%clk 0:00:06]}  axb3 {[%clk 0:00:40]} 30. Rxb3 {[%clk 0:00:06]}  d3 {[%clk 0:00:31]} 31. Rxb4 {[%clk 0:00:05]}  Bxb4 {[%clk 0:00:20]} 32. Qxb4 {[%clk 0:00:05]}  dxc2+ {[%clk 0:00:20]} 33. Kxc2 {[%clk 0:00:05]}  Rc8+ {[%clk 0:00:20]} 34. Bc3 {[%clk 0:00:05]}  Qa2+ {[%clk 0:00:18]} 35. Qb2 {[%clk 0:00:05]}  Qa4+ {[%clk 0:00:17]} 36. Qb3 {[%clk 0:00:05]}  Qe4+ {[%clk 0:00:17]} 37. Kb2 {[%clk 0:00:05]}  Rxf4 {[%clk 0:00:16]} 38. Rd2 {[%clk 0:00:05]}  Qc6 {[%clk 0:00:11]} 39. Nd6 {[%clk 0:00:04]}  Rcf8 {[%clk 0:00:01]} 40. Qxe6+ {[%clk 0:00:04]}  Kh8 {[%clk 0:00:01]} 41. Nf7+ {[%clk 0:00:05]}  R4xf7 {[%clk 0:00:01]} 42. gxf7 {[%clk 0:00:05]}  Qxe6 {[%clk 0:00:01]} 43. Rg2 {[%clk 0:00:06]}  Qxf7 {[%clk 0:00:01]} 44. Kc2 {[%clk 0:00:06]}  Kh7 {[%clk 0:00:01]} 45. Rd2 {[%clk 0:00:06]}  g5 {[%clk 0:00:01]} 46. Kb2 {[%clk 0:00:07]}  Kg6 {[%clk 0:00:02]} 47. Rc2 {[%clk 0:00:08]}  Kh5 {[%clk 0:00:03]} 48. Bd2 {[%clk 0:00:09]}  Qg6 {[%clk 0:00:03]} 49. h4 {[%clk 0:00:09]}  Qxc2+ {[%clk 0:00:04]} 50. Kxc2 {[%clk 0:00:10]}  Rf5 {[%clk 0:00:05]} 51. Kd3 {[%clk 0:00:11]}  gxh4 {[%clk 0:00:05]} 52. Ke4 {[%clk 0:00:11]}  Rg5 {[%clk 0:00:06]} 0-1


[Site "https://www.chess.com"]

[Event "Titled Tuesday Blitz June 6 Early 2023"]
[White "Lopez Idarraga, Daniel Eduardo"]
[Black "Baches Garcia, Guillermo"]
[WhiteFideId "4405501"]
[BlackFideId "2209764"]
[WhiteElo "1980"]
[BlackElo "2511"]
[Result "0-1"]
[Round "6"]
[TimeControl "180+2"]
[Date "2023.06.06"]
[WhiteClock "0:00:35"]
[BlackClock "0:00:26"]
[Board "99"]

1. d4 {[%clk 0:03:00]}  d5 {[%clk 0:02:59]} 2. Bf4 {[%clk 0:03:01]}  c5 {[%clk 0:02:57]} 3. e3 {[%clk 0:03:01]}  cxd4 {[%clk 0:02:57]} 4. exd4 {[%clk 0:03:02]}  Nc6 {[%clk 0:02:57]} 5. c3 {[%clk 0:03:02]}  Bf5 {[%clk 0:02:54]} 6. Nd2 {[%clk 0:03:02]}  f6 {[%clk 0:02:47]} 7. Ngf3 {[%clk 0:03:01]}  Qd7 {[%clk 0:02:47]} 8. Bb5 {[%clk 0:03:00]}  g5 {[%clk 0:02:42]} 9. Bg3 {[%clk 0:02:59]}  h5 {[%clk 0:02:39]} 10. h3 {[%clk 0:02:57]}  e6 {[%clk 0:02:36]} 11. Qa4 {[%clk 0:02:52]}  Bd6 {[%clk 0:02:33]} 12. Bxd6 {[%clk 0:02:49]}  Qxd6 {[%clk 0:02:34]} 13. Nb3 {[%clk 0:02:45]}  Ne7 {[%clk 0:02:26]} 14. Nc5 {[%clk 0:02:45]}  b6 {[%clk 0:02:19]} 15. Nd3 {[%clk 0:02:41]}  a6 {[%clk 0:01:55]} 16. Nb4 {[%clk 0:02:34]}  Rc8 {[%clk 0:01:37]} 17. Qxa6 {[%clk 0:02:33]}  Kf7 {[%clk 0:01:30]} 18. Nxc6 {[%clk 0:02:14]}  Nxc6 {[%clk 0:01:21]} 19. Qxb6 {[%clk 0:02:14]}  Be4 {[%clk 0:01:11]} 20. O-O {[%clk 0:01:37]}  Bxf3 {[%clk 0:01:06]} 21. gxf3 {[%clk 0:01:38]}  g4 {[%clk 0:01:00]} 22. Qc5 {[%clk 0:01:30]}  Qf4 {[%clk 0:00:43]} 23. Bxc6 {[%clk 0:01:18]}  gxh3 {[%clk 0:00:33]} 24. Qa7+ {[%clk 0:00:35]}  Rc7 {[%clk 0:00:26]} 0-1


[Site "https://www.chess.com"]

[Event "Titled Tuesday Blitz June 6 Early 2023"]
[White "Rosh Jain"]
[Black "Goffredo_Fofi"]
[WhiteFideId "25789465"]
[WhiteElo "2233"]
[BlackElo "2482"]
[Result "0-1"]
[Round "6"]
[TimeControl "180+2"]
[Date "2023.06.06"]
[WhiteClock "0:00:04"]
[BlackClock "0:00:45"]
[Board "101"]

1. e4 {[%clk 0:02:56]}  Nf6 {[%clk 0:03:00]} 2. Nc3 {[%clk 0:02:55]}  e5 {[%clk 0:03:00]} 3. Nf3 {[%clk 0:02:55]}  Nc6 {[%clk 0:03:00]} 4. Bc4 {[%clk 0:02:55]}  Nxe4 {[%clk 0:02:59]} 5. Nxe4 {[%clk 0:02:47]}  d5 {[%clk 0:02:59]} 6. Bxd5 {[%clk 0:02:47]}  Qxd5 {[%clk 0:02:59]} 7. Nc3 {[%clk 0:02:48]}  Qd6 {[%clk 0:02:49]} 8. O-O {[%clk 0:02:45]}  Bg4 {[%clk 0:02:48]} 9. h3 {[%clk 0:02:44]}  Bh5 {[%clk 0:02:47]} 10. Nb5 {[%clk 0:02:42]}  Qd7 {[%clk 0:02:39]} 11. d3 {[%clk 0:02:13]}  O-O-O {[%clk 0:02:32]} 12. Be3 {[%clk 0:02:11]}  a6 {[%clk 0:02:00]} 13. Nc3 {[%clk 0:02:07]}  Re8 {[%clk 0:01:51]} 14. g4 {[%clk 0:01:17]}  Bg6 {[%clk 0:01:47]} 15. d4 {[%clk 0:01:17]}  exd4 {[%clk 0:01:18]} 16. Nxd4 {[%clk 0:01:13]}  h5 {[%clk 0:01:18]} 17. Nxc6 {[%clk 0:01:06]}  Qxc6 {[%clk 0:01:17]} 18. g5 {[%clk 0:00:59]}  Bf5 {[%clk 0:01:09]} 19. Qd5 {[%clk 0:00:13]}  Qxd5 {[%clk 0:01:09]} 20. Nxd5 {[%clk 0:00:14]}  Bxh3 {[%clk 0:01:10]} 21. Rfd1 {[%clk 0:00:12]}  Bd6 {[%clk 0:01:05]} 22. c4 {[%clk 0:00:10]}  Bg4 {[%clk 0:01:05]} 23. Rd2 {[%clk 0:00:09]}  Bf3 {[%clk 0:00:56]} 24. c5 {[%clk 0:00:06]}  Be5 {[%clk 0:00:56]} 25. Rc1 {[%clk 0:00:04]}  h4 {[%clk 0:00:45]} 0-1


[Site "https://www.chess.com"]

[Event "Titled Tuesday Blitz June 6 Early 2023"]
[White "Lehtosaari, Mauri"]
[Black "MunichMouse"]
[WhiteFideId "501999"]
[WhiteElo "2476"]
[BlackElo "2286"]
[Result "1-0"]
[Round "6"]
[TimeControl "180+2"]
[Date "2023.06.06"]
[WhiteClock "0:00:03"]
[BlackClock "0:00:03"]
[Board "102"]

1. d4 {[%clk 0:02:57]}  Nf6 {[%clk 0:02:59]} 2. Nf3 {[%clk 0:02:55]}  g6 {[%clk 0:02:59]} 3. Bg5 {[%clk 0:02:54]}  Bg7 {[%clk 0:02:59]} 4. Nbd2 {[%clk 0:02:54]}  d5 {[%clk 0:02:59]} 5. e3 {[%clk 0:02:51]}  h6 {[%clk 0:02:59]} 6. Bxf6 {[%clk 0:02:50]}  Bxf6 {[%clk 0:02:59]} 7. c4 {[%clk 0:02:51]}  c6 {[%clk 0:02:58]} 8. cxd5 {[%clk 0:02:51]}  cxd5 {[%clk 0:02:58]} 9. Qb3 {[%clk 0:02:50]}  O-O {[%clk 0:02:56]} 10. Bd3 {[%clk 0:02:49]}  Nc6 {[%clk 0:02:56]} 11. O-O {[%clk 0:02:49]}  Kh7 {[%clk 0:02:28]} 12. a3 {[%clk 0:02:49]}  Re8 {[%clk 0:02:21]} 13. Rac1 {[%clk 0:02:42]}  a6 {[%clk 0:02:03]} 14. Qa2 {[%clk 0:02:39]}  e5 {[%clk 0:01:59]} 15. dxe5 {[%clk 0:02:38]}  Nxe5 {[%clk 0:01:59]} 16. Nxe5 {[%clk 0:02:35]}  Bxe5 {[%clk 0:02:00]} 17. Nf3 {[%clk 0:02:35]}  Bg7 {[%clk 0:02:00]} 18. Rfd1 {[%clk 0:02:33]}  Bg4 {[%clk 0:01:59]} 19. Be2 {[%clk 0:02:32]}  Qb6 {[%clk 0:01:43]} 20. b4 {[%clk 0:02:16]}  Bxf3 {[%clk 0:00:36]} 21. Bxf3 {[%clk 0:02:14]}  d4 {[%clk 0:00:37]} 22. Qxf7 {[%clk 0:02:02]}  dxe3 {[%clk 0:00:25]} 23. fxe3 {[%clk 0:01:43]}  Qxe3+ {[%clk 0:00:24]} 24. Kh1 {[%clk 0:01:41]}  Rad8 {[%clk 0:00:23]} 25. Rf1 {[%clk 0:00:51]}  Re7 {[%clk 0:00:20]} 26. Qc4 {[%clk 0:00:46]}  Qxa3 {[%clk 0:00:15]} 27. Be4 {[%clk 0:00:39]}  Qe3 {[%clk 0:00:12]} 28. Rce1 {[%clk 0:00:37]}  Qg5 {[%clk 0:00:12]} 29. Qc2 {[%clk 0:00:21]}  Rd6 {[%clk 0:00:08]} 30. Re2 {[%clk 0:00:14]}  Rde6 {[%clk 0:00:08]} 31. Rfe1 {[%clk 0:00:14]}  Be5 {[%clk 0:00:08]} 32. g3 {[%clk 0:00:13]}  Qh5 {[%clk 0:00:07]} 33. Qd3 {[%clk 0:00:11]}  Kg7 {[%clk 0:00:07]} 34. Bg2 {[%clk 0:00:11]}  Qf5 {[%clk 0:00:05]} 35. Qxf5 {[%clk 0:00:10]}  gxf5 {[%clk 0:00:06]} 36. Bh3 {[%clk 0:00:11]}  Kf6 {[%clk 0:00:06]} 37. Rf1 {[%clk 0:00:10]}  f4 {[%clk 0:00:07]} 38. gxf4 {[%clk 0:00:10]}  Bd4 {[%clk 0:00:07]} 39. Bxe6 {[%clk 0:00:08]}  Rxe6 {[%clk 0:00:07]} 40. Rd2 {[%clk 0:00:08]}  Re4 {[%clk 0:00:06]} 41. Rc2 {[%clk 0:00:07]}  Bb6 {[%clk 0:00:02]} 42. Rb2 {[%clk 0:00:06]}  Kf5 {[%clk 0:00:02]} 43. b5 {[%clk 0:00:06]}  h5 {[%clk 0:00:02]} 44. bxa6 {[%clk 0:00:06]}  Bd4 {[%clk 0:00:02]} 45. axb7 {[%clk 0:00:06]}  Bxb2 {[%clk 0:00:01]} 46. b8=Q {[%clk 0:00:06]}  Re2 {[%clk 0:00:02]} 47. Qf8+ {[%clk 0:00:05]}  Ke4 {[%clk 0:00:02]} 48. Qe7+ {[%clk 0:00:05]}  Kd3 {[%clk 0:00:03]} 49. Qd7+ {[%clk 0:00:04]}  Bd4 {[%clk 0:00:04]} 50. Qb5+ {[%clk 0:00:04]}  Ke3 {[%clk 0:00:04]} 51. Qxh5 {[%clk 0:00:03]}  Rd2 {[%clk 0:00:03]} 52. Qf3# {[%clk 0:00:03]} 1-0


[Site "https://www.chess.com"]

[Event "Titled Tuesday Blitz June 6 Early 2023"]
[White "Sanhueza, Cristian"]
[Black "Fier, Alexandr"]
[WhiteFideId "116815"]
[BlackFideId "2107139"]
[WhiteElo "2174"]
[BlackElo "2610"]
[Result "0-1"]
[Round "6"]
[TimeControl "180+2"]
[Date "2023.06.06"]
[WhiteClock "0:00:01"]
[BlackClock "0:01:22"]
[Board "104"]

1. e4 {[%clk 0:03:00]}  d5 {[%clk 0:02:58]} 2. exd5 {[%clk 0:02:58]}  Nf6 {[%clk 0:02:58]} 3. c4 {[%clk 0:02:53]}  e6 {[%clk 0:02:59]} 4. dxe6 {[%clk 0:02:52]}  Bxe6 {[%clk 0:03:00]} 5. Be2 {[%clk 0:02:52]}  c5 {[%clk 0:02:56]} 6. Nf3 {[%clk 0:02:50]}  Nc6 {[%clk 0:02:56]} 7. O-O {[%clk 0:02:45]}  Qc7 {[%clk 0:02:57]} 8. Nc3 {[%clk 0:02:43]}  O-O-O {[%clk 0:02:57]} 9. Qa4 {[%clk 0:02:31]}  a6 {[%clk 0:02:57]} 10. d3 {[%clk 0:02:30]}  Bd6 {[%clk 0:02:55]} 11. Bg5 {[%clk 0:02:27]}  h6 {[%clk 0:02:55]} 12. Bxf6 {[%clk 0:02:24]}  gxf6 {[%clk 0:02:56]} 13. Nd5 {[%clk 0:02:25]}  Bxd5 {[%clk 0:02:52]} 14. cxd5 {[%clk 0:02:26]}  Ne5 {[%clk 0:02:53]} 15. d4 {[%clk 0:02:16]}  Nxf3+ {[%clk 0:02:50]} 16. Bxf3 {[%clk 0:02:17]}  Bxh2+ {[%clk 0:02:40]} 17. Kh1 {[%clk 0:02:17]}  Qf4 {[%clk 0:02:30]} 18. Rac1 {[%clk 0:01:48]}  Qh4 {[%clk 0:02:28]} 19. Bg4+ {[%clk 0:01:48]}  Qxg4 {[%clk 0:02:25]} 20. Kxh2 {[%clk 0:01:48]}  Rxd5 {[%clk 0:02:25]} 21. Rfe1 {[%clk 0:01:23]}  Rg8 {[%clk 0:02:16]} 22. Re8+ {[%clk 0:01:22]}  Rd8 {[%clk 0:02:10]} 23. Rxc5+ {[%clk 0:01:17]}  Kb8 {[%clk 0:02:11]} 24. Rxd8+ {[%clk 0:01:10]}  Rxd8 {[%clk 0:02:11]} 25. Rc4 {[%clk 0:00:37]}  b5 {[%clk 0:01:45]} 26. Qa5 {[%clk 0:00:32]}  Qf4+ {[%clk 0:01:36]} 27. Kg1 {[%clk 0:00:28]}  Qd6 {[%clk 0:01:35]} 28. Rc6 {[%clk 0:00:22]}  Qxc6 {[%clk 0:01:33]} 29. Qxd8+ {[%clk 0:00:22]}  Kb7 {[%clk 0:01:34]} 30. Qe7+ {[%clk 0:00:19]}  Kb6 {[%clk 0:01:34]} 31. Qxf7 {[%clk 0:00:17]}  Qc1+ {[%clk 0:01:34]} 32. Kh2 {[%clk 0:00:17]}  Qf4+ {[%clk 0:01:34]} 33. Kg1 {[%clk 0:00:18]}  Qxd4 {[%clk 0:01:34]} 34. b3 {[%clk 0:00:15]}  Ka5 {[%clk 0:01:33]} 35. Qc7+ {[%clk 0:00:13]}  Kb4 {[%clk 0:01:34]} 36. Qe7+ {[%clk 0:00:12]}  Kc3 {[%clk 0:01:34]} 37. Qe6 {[%clk 0:00:07]}  a5 {[%clk 0:01:31]} 38. a4 {[%clk 0:00:06]}  bxa4 {[%clk 0:01:31]} 39. bxa4 {[%clk 0:00:07]}  Qxa4 {[%clk 0:01:28]} 40. Qxf6+ {[%clk 0:00:07]}  Qd4 {[%clk 0:01:29]} 41. Qxh6 {[%clk 0:00:08]}  a4 {[%clk 0:01:29]} 42. Qc1+ {[%clk 0:00:08]}  Kb3 {[%clk 0:01:29]} 43. g3 {[%clk 0:00:04]}  a3 {[%clk 0:01:29]} 44. Qb1+ {[%clk 0:00:04]}  Qb2 {[%clk 0:01:27]} 45. Qd3+ {[%clk 0:00:04]}  Qc3 {[%clk 0:01:27]} 46. Qb1+ {[%clk 0:00:04]}  Ka4 {[%clk 0:01:28]} 47. Qe4+ {[%clk 0:00:03]}  Kb5 {[%clk 0:01:27]} 48. Qd5+ {[%clk 0:00:03]}  Qc5 {[%clk 0:01:27]} 49. Qb3+ {[%clk 0:00:03]}  Ka5 {[%clk 0:01:27]} 50. Qa2 {[%clk 0:00:03]}  Qc1+ {[%clk 0:01:24]} 51. Kg2 {[%clk 0:00:02]}  Kb4 {[%clk 0:01:25]} 52. g4 {[%clk 0:00:02]}  Qb2 {[%clk 0:01:25]} 53. Qd5 {[%clk 0:00:01]}  a2 {[%clk 0:01:25]} 54. Qb7+ {[%clk 0:00:01]}  Kc3 {[%clk 0:01:26]} 55. Qg7+ {[%clk 0:00:01]}  Kc2 {[%clk 0:01:26]} 56. Qg6+ {[%clk 0:00:02]}  Kd1 {[%clk 0:01:26]} 57. Qd6+ {[%clk 0:00:02]}  Qd2 {[%clk 0:01:27]} 58. Qa6 {[%clk 0:00:02]}  Qd5+ {[%clk 0:01:26]} 59. f3 {[%clk 0:00:02]}  Qd2+ {[%clk 0:01:26]} 60. Kg3 {[%clk 0:00:02]}  Ke1 {[%clk 0:01:25]} 61. Qe6+ {[%clk 0:00:01]}  Kf1 {[%clk 0:01:25]} 62. Qa6+ {[%clk 0:00:01]}  Qe2 {[%clk 0:01:22]} 0-1


[Site "https://www.chess.com"]